{"text_format":"3","workbook":"xlsx","n_sheets":1,"sheets":["Proposta"],"not_rendered":{"defined_names":20},"read":"whole","date_system":"1900"}

{"sheet":"Proposta","index":0,"n_rows":41,"n_cols":8,"rows_kept":41,"merged":[[1,1,3,1],[1,4,1,7],[2,4,2,7],[3,5,3,7],[33,4,33,5],[34,4,36,5],[37,4,37,5],[38,4,38,5],[39,4,39,5],[40,4,40,5]]}
[]
[null,"SEU LOGOTIPO AQUI",null,null,"PROPOSTA DE CONSTRUÇÃO"]
[{"$nulls":4},"The Refurbished Home | 89 Pacific Ave, San Francisco, CA 78901"]
[{"$nulls":4},"P (123) 456-7890","F (123) 456-7891"]
[]
[null,"CLIENTE",null,null,"QUANTIDADE","DESCRIÇÃO","PREÇO UNITÁRIO","VALOR"]
[null,"Maria Clara",null,null,10,"Drywall",{"v":165,"d":"R$ 165.00"},{"$f":"IFERROR(ItensDeLinha[[#This Row],[QUANTIDADE]]*ItensDeLinha[[#This Row],[PREÇO UNITÁRIO]], \"\")","v":{"v":1650,"d":"R$ 1,650.00"}}]
[null,"ORÇAMENTO Nº",null,null,21,"Madeira compensada",{"v":40,"d":"R$ 40.00"},{"$f":"IFERROR(ItensDeLinha[[#This Row],[QUANTIDADE]]*ItensDeLinha[[#This Row],[PREÇO UNITÁRIO]], \"\")","v":{"v":840,"d":"R$ 840.00"}}]
[null,"C-1234",null,null,5,"Junções de madeira",{"v":10.5,"d":"R$ 10.50"},{"$f":"IFERROR(ItensDeLinha[[#This Row],[QUANTIDADE]]*ItensDeLinha[[#This Row],[PREÇO UNITÁRIO]], \"\")","v":{"v":52.5,"d":"R$ 52.50"}}]
[null,"DATA",null,null,164,"Parafusos de 10\"",{"v":2.75,"d":"R$ 2.75"},{"$f":"IFERROR(ItensDeLinha[[#This Row],[QUANTIDADE]]*ItensDeLinha[[#This Row],[PREÇO UNITÁRIO]], \"\")","v":{"v":451,"d":"R$ 451.00"}}]
[null,{"$f":"TODAY()","v":"2023-03-20"},null,null,6,"Ducha",{"v":12,"d":"R$ 12.00"},{"$f":"IFERROR(ItensDeLinha[[#This Row],[QUANTIDADE]]*ItensDeLinha[[#This Row],[PREÇO UNITÁRIO]], \"\")","v":{"v":72,"d":"R$ 72.00"}}]
[null,"ENDEREÇO",null,null,18,"Azulejo de banheiro",{"v":5.5,"d":"R$ 5.50"},{"$f":"IFERROR(ItensDeLinha[[#This Row],[QUANTIDADE]]*ItensDeLinha[[#This Row],[PREÇO UNITÁRIO]], \"\")","v":{"v":99,"d":"R$ 99.00"}}]
[null,"Av. das Flores, 123",null,null,1,"Espelho acima da pia",{"v":25,"d":"R$ 25.00"},{"$f":"IFERROR(ItensDeLinha[[#This Row],[QUANTIDADE]]*ItensDeLinha[[#This Row],[PREÇO UNITÁRIO]], \"\")","v":{"v":25,"d":"R$ 25.00"}}]
[null,"Cidade/Estado/CEP",{"$nulls":5},{"$f":"IFERROR(ItensDeLinha[[#This Row],[QUANTIDADE]]*ItensDeLinha[[#This Row],[PREÇO UNITÁRIO]], \"\")","v":{"v":0,"d":"R$ 0.00"}}]
[null,"Burbank, CA 54321",{"$nulls":5},{"$f":"IFERROR(ItensDeLinha[[#This Row],[QUANTIDADE]]*ItensDeLinha[[#This Row],[PREÇO UNITÁRIO]], \"\")","v":{"v":0,"d":"R$ 0.00"}}]
[null,"TELEFONE",{"$nulls":5},{"$f":"IFERROR(ItensDeLinha[[#This Row],[QUANTIDADE]]*ItensDeLinha[[#This Row],[PREÇO UNITÁRIO]], \"\")","v":{"v":0,"d":"R$ 0.00"}}]
[null,"(502) 555-0123",{"$nulls":5},{"$f":"IFERROR(ItensDeLinha[[#This Row],[QUANTIDADE]]*ItensDeLinha[[#This Row],[PREÇO UNITÁRIO]], \"\")","v":{"v":0,"d":"R$ 0.00"}}]
[null,"EMAIL",{"$nulls":5},{"$f":"IFERROR(ItensDeLinha[[#This Row],[QUANTIDADE]]*ItensDeLinha[[#This Row],[PREÇO UNITÁRIO]], \"\")","v":{"v":0,"d":"R$ 0.00"}}]
[null,"maria@contoso.com",{"$nulls":5},{"$f":"IFERROR(ItensDeLinha[[#This Row],[QUANTIDADE]]*ItensDeLinha[[#This Row],[PREÇO UNITÁRIO]], \"\")","v":{"v":0,"d":"R$ 0.00"}}]
[{"$nulls":7},{"$f":"IFERROR(ItensDeLinha[[#This Row],[QUANTIDADE]]*ItensDeLinha[[#This Row],[PREÇO UNITÁRIO]], \"\")","v":{"v":0,"d":"R$ 0.00"}}]
[{"$nulls":7},{"$f":"IFERROR(ItensDeLinha[[#This Row],[QUANTIDADE]]*ItensDeLinha[[#This Row],[PREÇO UNITÁRIO]], \"\")","v":{"v":0,"d":"R$ 0.00"}}]
[null,"VENDEDOR",{"$nulls":5},{"$f":"IFERROR(ItensDeLinha[[#This Row],[QUANTIDADE]]*ItensDeLinha[[#This Row],[PREÇO UNITÁRIO]], \"\")","v":{"v":0,"d":"R$ 0.00"}}]
[null,"Josko Lucic",{"$nulls":5},{"$f":"IFERROR(ItensDeLinha[[#This Row],[QUANTIDADE]]*ItensDeLinha[[#This Row],[PREÇO UNITÁRIO]], \"\")","v":{"v":0,"d":"R$ 0.00"}}]
[null,"PROJETO",{"$nulls":5},{"$f":"IFERROR(ItensDeLinha[[#This Row],[QUANTIDADE]]*ItensDeLinha[[#This Row],[PREÇO UNITÁRIO]], \"\")","v":{"v":0,"d":"R$ 0.00"}}]
[null,"Remodelagem de banheiro",{"$nulls":5},{"$f":"IFERROR(ItensDeLinha[[#This Row],[QUANTIDADE]]*ItensDeLinha[[#This Row],[PREÇO UNITÁRIO]], \"\")","v":{"v":0,"d":"R$ 0.00"}}]
[null,"PREPARADO POR:",{"$nulls":5},{"$f":"IFERROR(ItensDeLinha[[#This Row],[QUANTIDADE]]*ItensDeLinha[[#This Row],[PREÇO UNITÁRIO]], \"\")","v":{"v":0,"d":"R$ 0.00"}}]
[null,"Josko Lucic",{"$nulls":5},{"$f":"IFERROR(ItensDeLinha[[#This Row],[QUANTIDADE]]*ItensDeLinha[[#This Row],[PREÇO UNITÁRIO]], \"\")","v":{"v":0,"d":"R$ 0.00"}}]
[{"$nulls":7},{"$f":"IFERROR(ItensDeLinha[[#This Row],[QUANTIDADE]]*ItensDeLinha[[#This Row],[PREÇO UNITÁRIO]], \"\")","v":{"v":0,"d":"R$ 0.00"}}]
[{"$nulls":7},{"$f":"IFERROR(ItensDeLinha[[#This Row],[QUANTIDADE]]*ItensDeLinha[[#This Row],[PREÇO UNITÁRIO]], \"\")","v":{"v":0,"d":"R$ 0.00"}}]
[null,"ELEMENTO ",{"$nulls":5},{"$f":"IFERROR(ItensDeLinha[[#This Row],[QUANTIDADE]]*ItensDeLinha[[#This Row],[PREÇO UNITÁRIO]], \"\")","v":{"v":0,"d":"R$ 0.00"}}]
[null,"Maria Clara",{"$nulls":5},{"$f":"IFERROR(ItensDeLinha[[#This Row],[QUANTIDADE]]*ItensDeLinha[[#This Row],[PREÇO UNITÁRIO]], \"\")","v":{"v":0,"d":"R$ 0.00"}}]
[null,"TERMOS DE PAGAMENTO",{"$nulls":5},{"$f":"IFERROR(ItensDeLinha[[#This Row],[QUANTIDADE]]*ItensDeLinha[[#This Row],[PREÇO UNITÁRIO]], \"\")","v":{"v":0,"d":"R$ 0.00"}}]
[null,"Total em 30 dias",{"$nulls":4},"SUBTOTAL",{"$f":"SUBTOTAL(109,ItensDeLinha[VALOR])","v":{"v":3189.5,"d":"R$ 3,189.50"}}]
[null,"DATA DE PAGAMENTO",null,null,"ESTA PROPOSTA INCLUI AS SEGUINTES CONDIÇÕES:",null,"TAXA DE IMPOSTO ",{"v":0.0775,"d":"7.75%"}]
[null,{"$f":"TODAY()+30","v":"2023-04-19"},null,null,"Insira as condições aqui",null,"IMPOSTO ",{"$f":"IFERROR(Subtotal*AlíquotaDeImposto, \"\")","v":{"v":247.18625,"d":"R$ 247.19"}}]
[{"$nulls":6},"OUTROS "]
[{"$nulls":6},"TOTAL ",{"$f":"IFERROR(Subtotal+H35+Outros, \"\")","v":{"v":3436.68625,"d":"R$ 3,436.69"}}]
[]
[{"$nulls":4},"ASSINE ABAIXO PARA ACEITAR O ORÇAMENTO:"]
[]
[{"$nulls":4},"REP. AUTORIZADO",null,null,"DATA"]